bitfinex-derivatives/quotes_SOLF0:USTF0_20250626
["timestamp","ask_amount","ask_price","bid_price","bid_amount"]
[1750901801146,5.6405988,145.9,145.83,8.6340975]
[1750901801346,5.6405988,145.9,145.87,8.6340975]
[1750901801553,5.6405988,145.9,145.89,6.8508]
[1750901802144,7.1003,146.0,145.88,67.84]
[1750901802342,7.1003,146.0,145.92,8.6340975]
[1750901802553,7.1003,146.0,145.88,67.84]
[1750901802753,7.1003,146.0,145.88,76.46706071]
[1750901802954,7.1003,146.0,145.91,8.62706071]
[1750901803346,15.72736071,146.0,145.88,76.46706071]
[1750901803856,6.8497,145.92,145.88,76.46706071]
[1750901804058,74.56706071,145.97,145.85,592.18]
[1750901804360,6.8513,145.88,145.83,8.62706071]
[1750901804551,74.56706071,145.97,145.83,8.62706071]
[1750901804749,8.62706071,145.94,145.83,8.62706071]
[1750901804945,8.62706071,145.94,145.8,72.7949]
[1750901804946,2.2472,145.93,145.82,8.62706071]
[1750901805252,8.62706071,145.91,145.8,65.94]
[1750901805460,6.8532,145.84,145.8,65.94]
[1750901805658,65.92,145.91,145.82,8.62706071]
[1750901806052,6.8535,145.84,145.82,8.62706071]
[1750901806253,65.92,145.91,145.82,8.62706071]
[1750901806455,4.8425,145.92,145.85,8.62706071]
[1750901808459,6.8513,145.88,145.85,8.62706071]
[1750901808651,4.8425,145.92,145.85,8.62706071]
[1750901808850,65.92,145.96,145.85,8.62706071]
[1750901809054,7.003,146.01,145.91,8.62706071]
[1750901809559,6.8482,145.95,145.91,8.62706071]
[1750901810155,7.003,146.01,145.91,8.62706071]
[1750901811151,6.8465,145.99,145.93,6.8488]
[1750901811347,7.003,146.01,145.91,8.62706071]
[1750901811758,7.003,146.01,145.94,8.62706071]
[1750901812667,4.604,146.01,145.97,8.62706071]
[1750901813164,189.25635192,146.03,145.97,8.62706071]
[1750901813165,4.91702323,146.0,145.97,8.62706071]
[1750901813348,4.91702323,145.99,145.97,8.62706071]
[1750901813553,4.91611149,145.98,145.97,8.62706071]
[1750901814446,20.63,146.3,145.97,24.09328956]
[1750901814753,4.7612,146.21,146.12,8.61664478]
[1750901814955,11.5973,146.21,146.15,8.61664478]
[1750901815255,11.5973,146.21,146.07,773.08]
[1750901815256,4.7612,146.21,146.07,591.86]
[1750901815460,8.61664478,146.19,146.07,8.61664478]
[1750901815660,65.9,146.18,146.07,8.61664478]
[1750901816355,8.61664478,146.14,146.02,8.61664478]
[1750901816559,6.972,146.13,146.02,8.61664478]
[1750901816747,6.972,146.13,146.01,65.9]
[1750901816952,8.61664478,146.11,145.96,14.74458761]
[1750901817251,6.972,146.13,146.02,8.61664478]
[1750901817752,6.8414,146.09,146.02,8.61664478]
[1750901817954,6.97199942,146.13,146.02,8.61664478]
[1750901818165,8.61178048,146.07,145.95,14.73972331]
[1750901818353,2.2206,146.06,145.95,8.61178048]
[1750901818556,8.61178048,146.04,145.93,74.49178048]
[1750901819263,8.61178048,146.04,145.93,65.88]
[1750901819462,8.61178048,146.04,145.93,72.7287]
[1750901819651,8.61178048,146.04,145.93,65.88]
[1750901820468,6.8485,145.94,145.9,6.12794283]
[1750901820660,8.61178048,145.95,145.85,6.12794283]
[1750901820869,4.6917,145.94,145.81,14.73972331]
[1750901821061,6.8499,145.91,145.83,6.8532]
[1750901821260,4.6917,145.94,145.83,6.8532]
[1750901821559,4.6917,145.94,145.84,6.8531]
[1750901821758,4.6917,145.94,145.81,6.12794283]
[1750901821966,4.6917,145.94,145.8,8.61178048]
[1750901822164,4.6917,145.94,145.78,65.86]
[1750901822165,4.6917,145.94,145.81,6.12794283]
[1750901822461,8.61178048,145.92,145.8,14.73972331]
[1750901822668,8.61178048,145.92,145.78,65.86]
[1750901822866,8.61178048,145.89,145.78,65.86]
[1750901823165,6.8513,145.88,145.81,6.8544]
[1750901823571,65.88,145.89,145.8,8.61178048]
[1750901823769,2.3621,145.91,145.8,6.12794283]
[1750901824065,2.3621,145.91,145.82,8.61178048]
[1750901824474,2.3621,145.91,145.81,6.12794283]
[1750901824660,2.3621,145.91,145.82,14.73972331]
[1750901824858,2.3621,145.91,145.83,6.12794283]
[1750901825062,65.88,145.93,145.85,8.61178048]
[1750901825263,6.8496,145.92,145.85,8.61178048]
[1750901825561,65.88,145.93,145.85,8.61178048]
[1750901825871,65.88,145.93,145.85,6.12794283]
[1750901826065,65.88,145.93,145.84,80.63972331]
[1750901826460,65.88,145.93,145.84,65.9]
[1750901826758,65.88,145.93,145.84,80.63972331]
[1750901826962,72.729,145.93,145.87,6.8517]
[1750901827162,65.88,145.93,145.85,8.61178048]
[1750901827369,2.3234,145.94,145.88,8.61178048]
[1750901827559,2.3234,145.94,145.89,6.8508]
[1750901827763,2.3234,145.94,145.88,8.61178048]
[1750901828076,2.3234,145.94,145.85,14.73972331]
[1750901828360,2.3234,145.94,145.87,8.61178048]
[1750901828667,4.7742,145.98,145.9,8.61178048]
[1750901829463,4.7742,145.98,145.91,12.03422144]
[1750901829661,4.7742,145.98,145.92,12.03422144]
[1750901829861,4.7742,145.98,145.93,5.54845303]
[1750901830060,4.7742,145.98,145.94,6.48829307]
[1750901830270,4.7742,145.98,145.89,14.73972331]
[1750901830271,4.7742,145.98,145.89,6.12794283]
[1750901830472,4.7742,145.98,145.9,12.04269167]
[1750901830766,6.8482,145.95,145.91,12.04269167]
[1750901831072,4.7742,145.98,145.92,6.49108619]
[1750901831272,4.7742,145.98,145.88,6.8512]
[1750901831568,4.7742,145.98,145.89,12.04903655]
[1750901831764,4.7742,145.98,145.85,8.18361876]
[1750901831765,6.8498,145.92,145.9,6.49474325]
[1750901831971,8.61178048,145.96,145.91,6.49881141]
[1750901832268,8.61178048,145.96,145.86,14.73972331]
[1750901832468,8.61178048,145.96,145.87,18.18300139]
[1750901832666,8.61178048,145.96,145.88,6.49839946]
[1750901832974,8.61178048,145.96,145.83,196.27539924]
[1750901832975,8.61178048,145.93,145.83,185.60794283]
[1750901833170,66.2216,145.92,145.83,8.61178048]
[1750901833469,6.8504,145.9,145.84,12.98104283]
[1750901833675,2.2216,145.92,145.84,6.12794283]
[1750901834167,2.2216,145.92,145.86,8.61178048]
[1750901834369,2.2216,145.92,145.86,14.73972331]
[1750901834762,2.2216,145.92,145.87,6.8516]
[1750901835157,2.2216,145.92,145.86,14.73972331]
[1750901835570,2.2216,145.92,145.86,6.12794283]
[1750901835769,2.2216,145.92,145.83,6.12794283]
[1750901835969,2.3786,145.91,145.82,14.73972331]
[1750901836375,10.99038048,145.91,145.81,6.12794283]
[1750901836575,2.3786,145.91,145.84,8.61178048]
[1750901836778,6.8488,145.94,145.84,8.61178048]
[1750901836975,591.84,145.95,145.87,8.61178048]
[1750901837172,591.84,145.95,145.86,14.73972331]
[1750901837376,591.84,145.95,145.86,6.12794283]
[1750901837571,591.84,145.95,145.87,5.56964693]
[1750901837873,6.8485,145.94,145.88,5.56964693]
[1750901838077,591.84,145.95,145.89,5.56964693]
[1750901838375,6.8485,145.94,145.9,5.56964693]
[1750901838571,68.6959,145.97,145.87,6.12794283]
[1750901838772,68.6959,145.97,145.88,5.56924189]
[1750901839076,68.6959,145.97,145.84,6.12794283]
[1750901839275,8.61178048,145.94,145.85,5.57170659]
[1750901839475,8.61178048,145.94,145.86,5.57170659]
[1750901839676,8.61178048,145.94,145.83,8.61178048]
[1750901839974,8.61178048,145.94,145.84,5.57323268]
[1750901840175,8.61178048,145.94,145.85,5.57323268]
[1750901840368,8.61178048,145.94,145.86,5.57323268]
[1750901840572,8.61178048,145.94,145.83,8.61178048]
[1750901840776,6.8507,145.9,145.84,12.42831425]
[1750901840976,6.8507,145.9,145.85,5.57521425]
[1750901841177,6.8507,145.9,145.86,5.57521425]
[1750901841382,6.8507,145.9,145.84,6.8531]
[1750901841677,6.8507,145.9,145.85,5.58048316]
[1750901841972,6.8517,145.87,145.86,5.58048316]
[1750901842168,2.3856,145.89,145.81,12.98234283]
[1750901842369,2.3856,145.89,145.82,5.58402742]
[1750901842577,6.8518,145.87,145.83,5.58402742]
[1750901842770,6.8518,145.87,145.81,12.98234283]
[1750901842771,2.3856,145.89,145.84,5.58402742]
[1750901842974,2.3856,145.89,145.85,5.58402742]
[1750901843177,6.8519,145.87,145.86,5.58402742]
[1750901843474,2.3856,145.89,145.81,6.12794283]
[1750901843694,8.61178048,145.87,145.82,5.63966202]
[1750901843878,8.61178048,145.87,145.77,6.12794283]
[1750901844180,8.61178048,145.87,145.78,5.64438618]
[1750901844377,8.61178048,145.84,145.75,6.12794283]
[1750901844573,72.63178048,145.84,145.76,5.64618776]
[1750901844774,64.02,145.84,145.77,5.64618776]
[1750901844978,64.02,145.84,145.73,2.2353]
[1750901844979,64.02,145.84,145.78,5.64618776]
[1750901845285,72.63178048,145.84,145.74,6.12794283]
[1750901845481,72.63178048,145.84,145.75,5.64700866]
[1750901845782,8.61178048,145.83,145.76,5.64700866]
[1750901845985,8.61178048,145.83,145.77,5.64700866]
[1750901846279,64.02,145.86,145.78,5.64646789]
[1750901846466,64.02,145.86,145.79,5.64646789]
[1750901846673,64.02,145.86,145.8,5.64646789]
[1750901846867,64.02,145.86,145.77,14.73972331]
[1750901847072,64.02,145.86,145.78,5.64400475]
[1750901847375,64.02,145.86,145.79,5.64400475]
[1750901847575,64.02,145.86,145.8,5.64400475]
[1750901847782,64.02,145.86,145.76,6.12794283]
[1750901848069,6.8542,145.82,145.77,5.64218292]
[1750901848380,6.8542,145.82,145.78,5.64218292]
[1750901848582,6.8542,145.82,145.79,5.64218292]
[1750901848879,6.8542,145.82,145.76,12.98444283]
[1750901848880,6.8546,145.81,145.8,5.64218292]
[1750901849076,6.8546,145.81,145.75,12.98524283]
[1750901849280,6.8554,145.8,145.76,5.64199564]
[1750901849579,72.63178048,145.86,145.77,5.64199564]
[1750901849781,6.8556,145.79,145.78,5.64199564]
[1750901849979,8.61178048,145.83,145.73,6.12794283]
[1750901850284,6.854,145.83,145.77,6.8563]
[1750901850583,8.61178048,145.85,145.74,6.12794283]
[1750901850779,8.61178048,145.85,145.75,5.68364973]
[1750901850982,8.61178048,145.82,145.76,5.68364973]
[1750901851183,4.7293,145.81,145.71,6.12794283]
[1750901851482,64.04,145.8,145.72,5.68597782]
[1750901851685,64.04,145.8,145.73,5.68597782]
[1750901851990,64.04,145.8,145.74,5.68597782]
[1750901852186,64.04,145.8,145.75,5.68597782]
[1750901852373,64.04,145.8,145.71,6.12794283]
[1750901852687,72.65178048,145.8,145.72,5.68111916]
[1750901852874,2.4468,145.79,145.73,5.68111916]
[1750901853075,8.61178048,145.77,145.67,6.12794283]
[1750901853282,8.61178048,145.77,145.68,5.68575451]
[1750901853481,6.8591,145.72,145.69,5.68575451]
[1750901853685,8.61178048,145.77,145.7,5.68185349]
[1750901853985,8.61178048,145.77,145.66,6.12794283]
[1750901854189,6.8578,145.74,145.67,5.68185349]
[1750901854381,6.8578,145.74,145.67,11.80979632]
[1750901854686,2.4468,145.79,145.68,20.4215768]
[1750901854872,2.4468,145.79,145.69,5.68185349]
[1750901855074,2.4468,145.79,145.7,5.68185349]
[1750901855385,2.4468,145.79,145.71,5.68185349]
[1750901855586,2.4468,145.79,145.68,14.73972331]
[1750901855778,2.4468,145.79,145.69,5.67781392]
[1750901855979,8.61178048,145.77,145.7,5.67781392]
[1750901856277,8.61178048,145.77,145.66,8.61178048]
[1750901856478,8.61178048,145.77,145.67,5.67701584]
[1750901856679,2.4468,145.79,145.68,5.67701584]
[1750901856883,2.4468,145.79,145.69,14.28879632]
[1750901857085,2.4468,145.79,145.72,8.61178048]
[1750901857291,2.4468,145.79,145.73,5.67701584]
[1750901857583,2.4468,145.79,145.69,8.18361876]
[1750901857584,2.4468,145.79,145.69,6.12794283]
[1750901857793,2.4468,145.79,145.7,5.68615347]
[1750901857979,6.8565,145.77,145.71,12.54535347]
[1750901858179,2.4468,145.79,145.72,5.68615347]
[1750901858585,6.8568,145.77,145.71,6.8592]
[1750901858784,6.8568,145.77,145.72,5.68945205]
[1750901859078,6.8568,145.77,145.71,6.8592]
[1750901859281,6.8568,145.77,145.72,5.69009073]
[1750901859479,6.8568,145.77,145.71,6.8592]
[1750901859688,6.8568,145.77,145.72,5.68914653]
[1750901859880,4.7293,145.81,145.73,5.68707668]
[1750901860079,4.7293,145.81,145.74,5.68707668]
[1750901860387,2.2719,145.81,145.75,20.42679999]
[1750901860592,2.2719,145.81,145.76,5.68707668]
[1750901860891,2.4364,145.83,145.77,5.68707668]
[1750901861106,64.4415,145.86,145.78,5.68707668]
[1750901861386,73.05328048,145.86,145.79,5.70544802]
[1750901861583,64.4415,145.86,145.8,5.7037771]
[1750901861786,64.4415,145.86,145.81,5.7037771]
[1750901861989,64.4415,145.86,145.77,14.73972331]
[1750901862190,64.4415,145.86,145.79,6.12794283]
[1750901862395,64.4415,145.86,145.8,14.31488321]
[1750901862689,6.853,145.85,145.81,5.70310273]
[1750901862892,6.853,145.85,145.82,5.70310273]
[1750901863093,6.853,145.85,145.83,5.68357492]
[1750901863396,6.853,145.85,145.8,14.73972331]
[1750901863585,6.853,145.85,145.81,5.685388]
[1750901863891,6.8533,145.84,145.82,5.685388]
[1750901864190,6.8533,145.84,145.83,5.685388]
[1750901864796,6.8546,145.81,145.8,6.12794283]
[1750901864984,8.61178048,145.85,145.78,6.12794283]
[1750901865382,6.8551,145.8,145.77,6.12794283]
[1750901865788,6.8547,145.81,145.77,6.12794283]
[1750901865991,8.61178048,145.85,145.77,6.12794283]
[1750901866387,64.4415,145.86,145.78,6.12794283]
[1750901866589,64.4415,145.86,145.76,16.79539924]
[1750901866590,64.4415,145.86,145.8,6.12794283]
[1750901866794,6.8535,145.84,145.8,6.12794283]
[1750901866997,64.4415,145.86,145.8,6.12794283]
[1750901867191,64.4415,145.86,145.79,6.12794283]
[1750901867496,64.4415,145.86,145.77,6.12794283]
[1750901868087,6.8551,145.8,145.77,6.12794283]
[1750901868298,64.4415,145.86,145.77,6.12794283]
[1750901868487,6.8551,145.8,145.77,6.12794283]
[1750901869193,6.8556,145.79,145.77,6.12794283]
[1750901869391,8.61178048,145.85,145.77,6.12794283]
[1750901869598,8.61178048,145.85,145.76,6.12794283]
[1750901871585,8.61178048,145.82,145.76,6.12794283]
[1750901871782,62.2,145.81,145.76,6.12794283]
[1750901872090,6.8564,145.77,145.76,6.12794283]
[1750901872298,2.3507,145.8,145.72,8.18361876]
[1750901872498,8.61178048,145.79,145.7,8.18361876]
[1750901872989,2.2777,145.78,145.68,8.18361876]
[1750901873192,6.8591,145.72,145.68,8.18361876]
[1750901873394,62.2,145.76,145.68,8.18361876]
[1750901874093,62.2,145.76,145.58,12.27542814]
[1750901874094,8.66204009,145.69,145.58,12.27542814]
[1750901874288,62.2,145.68,145.57,12.27542814]
[1750901874488,62.2,145.67,145.58,8.66335444]
[1750901874796,62.2,145.67,145.6,12.27542814]
[1750901874986,592.38,145.71,145.61,8.65984137]
[1750901875383,592.38,145.71,145.59,8.66094292]
[1750901875598,592.38,145.71,145.57,74.27542814]
[1750901875599,8.66310611,145.7,145.56,16.48252814]
[1750901875896,8.66310611,145.7,145.57,8.66310611]
[1750901876096,8.66310611,145.7,145.58,6.8653]
[1750901876489,8.66310611,145.7,145.57,8.66310611]
[1750901876694,8.66310611,145.67,145.56,4.2071]
[1750901876995,62.22,145.66,145.56,4.2071]
[1750901877902,70.88310611,145.66,145.56,12.87020611]
[1750901878086,62.22,145.68,145.59,8.66310611]
[1750901878392,62.22,145.68,145.56,16.48252814]
[1750901878698,62.22,145.68,145.61,8.66310611]
[1750901878898,62.22,145.68,145.61,15.52700611]
[1750901879597,62.22,145.68,145.61,8.66310611]
[1750901879802,592.66,145.78,145.64,8.66310611]
[1750901879993,6.8588,145.72,145.67,8.66310611]
[1750901880194,62.24,145.77,145.67,8.66310611]
[1750901880394,62.24,145.77,145.68,2.2524]
[1750901880697,8.66310611,145.75,145.63,2.2739]
[1750901880896,62.24,145.77,145.63,2.2739]
[1750901880897,8.66310611,145.72,145.63,2.2739]
[1750901881105,62.24,145.71,145.6,73.25990611]
[1750901881902,8.66310611,145.7,145.6,73.25990611]
[1750901882200,8.66310611,145.67,145.58,2.3668]
[1750901882405,62.24,145.66,145.56,10.64980611]
[1750901882603,64.4742,145.66,145.56,10.64980611]
[1750901883199,64.4742,145.66,145.57,6.8657]
[1750901883394,62.24,145.66,145.59,8.66310611]
[1750901883898,62.24,145.66,145.56,10.64980611]
[1750901884291,62.24,145.66,145.56,1.9867]
[1750901884504,62.24,145.66,145.49,12.27542814]
[1750901884797,6.8658,145.58,145.51,17.95530611]
[1750901885000,6.8658,145.58,145.51,11.08670611]
[1750901885200,62.34,145.61,145.51,2.4236]
[1750901885397,6.866,145.57,145.51,2.4236]
[1750901885703,8.66310611,145.6,145.51,2.4236]
[1750901885899,8.66310611,145.6,145.5,2.4016]
[1750901887003,6.8671,145.55,145.48,69.1097]
[1750901887198,6.8671,145.55,145.48,71.368]
[1750901887595,64.7999,145.61,145.48,71.368]
[1750901887902,73.46300611,145.61,145.5,8.66310611]
[1750901888696,2.4599,145.61,145.53,8.66310611]
[1750901889196,2.4599,145.61,145.5,8.66310611]
[1750901889400,2.4599,145.61,145.48,76.77372814]
[1750901889606,2.4599,145.61,145.49,15.53230611]
[1750901889804,2.4599,145.61,145.49,8.66310611]
[1750901890105,6.8662,145.57,145.49,8.66310611]
[1750901890607,2.4599,145.61,145.49,8.66310611]
[1750901890805,2.4599,145.61,145.53,6.8673]
[1750901891008,62.36,145.62,145.52,8.66310611]
[1750901891307,6.8648,145.6,145.52,8.66310611]
[1750901891699,62.36,145.62,145.52,8.66310611]
[1750901892204,71.02310611,145.62,145.5,70.66310611]
[1750901892403,71.02310611,145.62,145.5,8.66310611]
[1750901892704,71.02310611,145.62,145.49,8.66310611]
[1750901893202,71.02310611,145.62,145.5,6.869]
[1750901893404,71.02310611,145.62,145.48,64.4983]
[1750901893405,8.66310611,145.59,145.48,64.4983]
[1750901893711,6.8655,145.58,145.51,6.8686]
[1750901893905,8.66310611,145.61,145.51,6.8686]
[1750901894112,8.66310611,145.61,145.5,8.66310611]
[1750901894409,6.8663,145.57,145.5,8.66310611]
[1750901894711,6.8663,145.57,145.48,64.4983]
[1750901895015,6.8654,145.58,145.49,8.66310611]
[1750901895220,8.66310611,145.61,145.49,8.66310611]
[1750901895411,8.66310611,145.61,145.49,70.66310611]
[1750901895711,6.8658,145.58,145.52,6.8681]
[1750901895903,6.8658,145.58,145.53,5.66849472]
[1750901896506,8.66310611,145.61,145.53,5.66849472]
[1750901896710,8.66310611,145.61,145.54,5.66849472]
[1750901896901,8.66310611,145.61,145.55,5.66849472]
[1750901897213,8.66310611,145.61,145.49,8.66310611]
[1750901897407,8.66310611,145.61,145.5,5.66639285]
[1750901897612,8.66310611,145.61,145.51,5.66639285]
[1750901897814,8.66310611,145.61,145.52,5.66639285]
[1750901898112,8.66310611,145.61,145.53,5.66639285]
[1750901898309,5.6614869,145.59,145.54,5.66639285]
[1750901898515,5.6614869,145.59,145.48,70.1597869]
[1750901898811,6.8673,145.54,145.49,12.52775555]
[1750901899112,6.8673,145.54,145.5,5.65825555]
[1750901899313,6.8679,145.53,145.51,5.65825555]
[1750901899515,6.8679,145.53,145.48,2.2583]
[1750901899720,68.5128869,145.57,145.49,5.65804665]
[1750901899913,5.6614869,145.55,145.5,5.65804665]
[1750901900212,5.6614869,145.55,145.46,2.3277]
[1750901900416,5.6614869,145.55,145.47,5.65884638]
[1750901900610,5.6614869,145.53,145.48,5.65884638]
[1750901900812,60.54,145.52,145.45,5.6614869]
[1750901901014,60.54,145.56,145.47,5.6614869]
[1750901901210,5.6614869,145.55,145.48,5.66087819]
[1750901901430,5.6614869,145.53,145.44,2.4266]
[1750901901611,5.6614869,145.51,145.45,5.65973879]
[1750901901818,60.54,145.5,145.43,7.9534869]
[1750901902113,60.54,145.5,145.41,2.4266]
[1750901902114,6.8714,145.46,145.44,5.65984267]
[1750901902310,2.3335,145.49,145.41,8.0880869]
[1750901902513,2.3335,145.49,145.42,5.65732141]
[1750901902705,2.3335,145.49,145.41,2.4266]
[1750901903420,7.9949869,145.49,145.39,5.6614869]
[1750901903810,5.6614869,145.47,145.38,2.2721]
[1750901904118,5.6614869,145.45,145.36,5.6614869]
[1750901904323,60.56,145.44,145.36,5.6614869]
[1750901904813,6.8737,145.41,145.36,5.6614869]
[1750901905015,60.56,145.44,145.36,5.6614869]
[1750901905518,60.56,145.44,145.33,2.2721]
[1750901905907,60.56,145.44,145.36,5.6614869]
[1750901906103,60.56,145.44,145.33,2.2721]
[1750901906104,60.56,145.44,145.38,5.6614869]
[1750901906516,66.2214869,145.44,145.34,5.6614869]
[1750901907114,5.6614869,145.42,145.33,2.2721]
[1750901907317,5.6614869,145.42,145.33,7.9335869]
[1750901907514,6.8749,145.38,145.33,7.9335869]
[1750901907714,5.6614869,145.42,145.33,7.9335869]
[1750901908112,60.56,145.44,145.33,7.9335869]
[1750901908113,2.4403,145.41,145.33,7.9335869]
[1750901908308,2.4403,145.41,145.31,10.3413869]
[1750901908514,2.4403,145.41,145.33,5.6614869]
[1750901908716,6.8744,145.39,145.33,12.5382869]
[1750901908909,2.4403,145.41,145.33,5.6614869]
[1750901909117,2.4403,145.41,145.35,5.6614869]
[1750901909313,2.4403,145.41,145.35,12.5372869]
[1750901909711,2.4403,145.41,145.35,5.6614869]
[1750901910232,2.4403,145.41,145.33,5.6614869]
[1750901910424,6.8748,145.38,145.31,17.2190869]
[1750901910612,6.8748,145.38,145.31,10.3413869]
[1750901911222,6.8744,145.39,145.33,5.6614869]
[1750901911819,6.8749,145.38,145.33,5.6614869]
[1750901912024,2.4403,145.41,145.32,5.6614869]
[1750901912416,2.4403,145.41,145.32,12.5390869]
[1750901912616,2.4403,145.41,145.31,4.6799]
[1750901912818,2.4403,145.41,145.33,5.6614869]
[1750901913124,2.4403,145.41,145.35,5.6614869]
[1750901913624,2.4403,145.41,145.34,5.6614869]
[1750901914025,6.8749,145.38,145.34,5.6614869]
[1750901914823,2.4403,145.41,145.32,6.8775]
[1750901915020,2.4403,145.41,145.33,5.6614869]
[1750901915420,2.4403,145.41,145.33,12.5386869]
[1750901916126,8.1017869,145.41,145.33,5.6614869]
[1750901916432,8.1017869,145.41,145.31,4.6799]
[1750901916433,6.876,145.36,145.31,5.6614869]
[1750901916732,58.78,145.38,145.29,5.6614869]
[1750901916930,6.877,145.34,145.28,12.5408869]
[1750901917124,58.78,145.38,145.28,5.6614869]
[1750901917330,5.6614869,145.37,145.28,5.6614869]
[1750901917833,58.78,145.38,145.28,5.6614869]
[1750901918133,58.78,145.38,145.3,5.6614869]
[1750901918430,58.78,145.38,145.29,5.6614869]
[1750901919333,58.78,145.38,145.3,5.6614869]
[1750901920231,6.8768,145.34,145.3,5.6614869]
[1750901920631,58.78,145.38,145.3,5.6614869]
[1750901920929,6.8762,145.35,145.3,5.6614869]
[1750901921134,58.78,145.38,145.3,5.6614869]
[1750901921337,6.8762,145.36,145.3,12.5398869]
[1750901921529,6.8762,145.36,145.31,5.6614869]
[1750901922030,6.8754,145.37,145.32,6.8773]
[1750901922231,61.2203,145.41,145.35,5.6614869]
[1750901922538,1.2775,145.49,145.39,5.6614869]
[1750901922539,58.78,145.46,145.39,5.6614869]
[1750901922837,58.78,145.51,145.45,5.6614869]
[1750901923039,58.78,145.53,145.45,5.6614869]
[1750901923226,58.78,145.53,145.4,58.78]
[1750901923422,5.6614869,145.52,145.43,5.6614869]
[1750901923835,5.6614869,145.48,145.35,7.0045]
[1750901924136,63.5209,145.47,145.36,5.6614869]
[1750901924334,58.78,145.46,145.38,5.6614869]
[1750901925436,6.8716,145.45,145.38,12.5358869]
[1750901925831,58.78,145.46,145.38,5.6614869]
[1750901926031,6.8724,145.44,145.38,5.6614869]
[1750901926429,6.8724,145.44,145.37,6.8749]
[1750901926637,58.78,145.46,145.38,5.6614869]
[1750901926935,58.78,145.46,145.4,5.6614869]
[1750901928133,58.78,145.5,145.42,5.6614869]
[1750901928339,6.8707,145.47,145.44,5.6614869]
[1750901928723,58.78,145.5,145.44,5.6614869]
[1750901929333,6.8705,145.48,145.44,5.6614869]
[1750901929536,58.78,145.5,145.44,5.6614869]
[1750901930639,5.6614869,145.49,145.39,64.4414869]
[1750901930936,5.6614869,145.47,145.37,5.6614869]
[1750901932336,5.6614869,145.45,145.35,18.9024876]
[1750901932534,5.6614869,145.43,145.35,10.3692869]
[1750901934740,63.3139,145.44,145.35,10.3692869]
[1750901935143,63.3139,145.44,145.37,5.6614869]
[1750901935343,61.0006,145.44,145.37,5.6614869]
[1750901936742,6.8735,145.41,145.36,6.8757]
[1750901936944,61.0006,145.44,145.36,12.5371869]
[1750901937137,61.0006,145.44,145.38,6.8747]
[1750901937342,61.0006,145.44,145.38,11.8979876]
[1750901938045,65.6321,145.44,145.38,11.8979876]
[1750901938445,6.8725,145.43,145.38,18.7726876]
[1750901938635,58.76,145.44,145.38,11.8979876]
[1750901939344,2.3212,145.48,145.42,11.8979876]
[1750901939544,2.3212,145.48,145.42,5.6614869]
[1750901940136,2.3212,145.48,145.42,11.8979876]
[1750901940338,6.8713,145.46,145.42,11.8979876]
[1750901940542,6.8713,145.46,145.42,5.6614869]
[1750901940842,2.3212,145.48,145.41,6.2365007]
[1750901941140,2.3212,145.48,145.4,6.2365007]
[1750901941141,7.9826869,145.48,145.4,6.2365007]
[1750901941841,2.3212,145.48,145.41,11.8979876]
[1750901942045,2.3212,145.48,145.41,6.2365007]
[1750901942348,7.9826869,145.48,145.4,6.2365007]
[1750901942739,5.6614869,145.46,145.4,6.2365007]
[1750901942941,5.6614869,145.46,145.38,13.92671258]
[1750901942942,56.92,145.45,145.38,6.2365007]
[1750901943542,5.6614869,145.44,145.37,6.2365007]
[1750901943742,5.6614869,145.44,145.35,10.67292568]
[1750901943743,5.6614869,145.44,145.36,6.2365007]
[1750901944049,6.8742,145.4,145.36,6.2365007]
[1750901944243,5.6614869,145.44,145.37,6.2365007]
[1750901944449,6.8747,145.39,145.37,6.2365007]
[1750901944645,5.6614869,145.42,145.37,6.2365007]
[1750901944844,2.4416,145.41,145.36,6.2365007]
[1750901945246,2.4416,145.41,145.38,6.2365007]
[1750901945447,6.8756,145.37,145.35,6.2365007]
[1750901945946,6.8747,145.39,145.35,6.2365007]
[1750901946145,2.4416,145.41,145.36,6.2365007]
[1750901946346,2.4416,145.41,145.37,6.2365007]
[1750901946552,6.8739,145.4,145.37,6.2365007]
[1750901946943,2.4416,145.41,145.38,6.2365007]
[1750901947843,6.8735,145.41,145.38,6.2365007]
[1750901948039,5.6614869,145.44,145.38,6.2365007]
[1750901948249,6.8742,145.4,145.37,6.2365007]